bitfinex/quotes_BTCUSD_20250303
["timestamp","ask_amount","ask_price","bid_price","bid_amount"]
[1740966882785,0.00480043,93205.0,93204.0,2.34803645]
[1740966882979,0.00480043,93205.0,93204.0,2.35503645]
[1740966883846,0.00480043,93205.0,93204.0,2.36203645]
[1740966885172,0.00480043,93205.0,93204.0,1.88955902]
[1740966885358,0.08330043,93205.0,93204.0,1.73475677]
[1740966885561,0.00480043,93205.0,93204.0,2.03475677]
[1740966885970,0.00480043,93205.0,93204.0,2.02775677]
[1740966886146,0.00480043,93205.0,93204.0,2.45669379]
[1740966887187,0.00480043,93205.0,93204.0,2.46369379]
[1740966887408,0.00480043,93205.0,93204.0,2.34785677]
[1740966887880,0.00480043,93205.0,93204.0,2.32783452]
[1740966888239,0.00480043,93205.0,93204.0,2.32083452]
[1740966888652,0.00480043,93205.0,93204.0,2.33483452]
[1740966888839,0.00480043,93205.0,93204.0,2.32783452]
[1740966889469,0.00480043,93205.0,93204.0,2.33483452]
[1740966890596,0.00480043,93205.0,93204.0,2.33517532]
[1740966891108,0.13440043,93205.0,93204.0,1.5143408]
[1740966891739,0.13440043,93205.0,93204.0,1.5073408]
[1740966891907,0.13440043,93205.0,93204.0,1.5003408]
[1740966892122,0.13440043,93205.0,93204.0,1.5073408]
[1740966892310,0.13440043,93205.0,93204.0,1.5143408]
[1740966892534,0.38363711,93205.0,93204.0,1.5003408]
[1740966892948,0.39510117,93205.0,93204.0,0.0143408]
[1740966893133,0.39510117,93205.0,93204.0,0.0073408]
[1740966893469,0.39510117,93205.0,93204.0,0.0003408]
[1740966893614,0.39510117,93205.0,93204.0,0.0143408]
[1740966894061,0.38363711,93205.0,93204.0,0.0143408]
[1740966894658,0.22270211,93205.0,93204.0,0.0143408]
[1740966894861,0.38363711,93205.0,93204.0,0.0073408]
[1740966895432,0.38363711,93205.0,93204.0,0.0003408]
[1740966895623,0.38363711,93205.0,93204.0,0.0073408]
[1740966895848,0.38363711,93205.0,93204.0,0.0143408]
[1740966896053,0.210344,93200.0,93199.0,0.0959949]
[1740966896254,0.37633348,93200.0,93199.0,0.0959949]
[1740966898128,0.160955,93194.0,93186.0,0.0959949]
[1740966898345,0.08913638,93193.0,93186.0,0.0959949]
[1740966898554,0.1268,93200.0,93193.0,0.160956]
[1740966898555,0.08913638,93194.0,93193.0,0.160956]
[1740966898672,0.08913638,93194.0,93192.0,0.160957]
[1740966899075,0.08913638,93194.0,93193.0,0.160956]
[1740966899275,0.09013638,93194.0,93193.0,0.160956]
[1740966899518,0.09113638,93194.0,93191.0,0.160958]
[1740966899727,0.09013638,93194.0,93193.0,0.160956]
[1740966899922,0.09113638,93194.0,93193.0,0.160956]
[1740966900098,0.002,93194.0,93193.0,0.160956]
[1740966900299,0.003,93194.0,93193.0,0.160956]
[1740966900586,0.003,93194.0,93192.0,0.014]
[1740966900782,0.24991967,93193.0,93192.0,0.014]
[1740966900990,0.33021967,93193.0,93192.0,0.014]
[1740966901413,0.33021967,93193.0,93192.0,0.007]
[1740966901793,0.16926367,93193.0,93185.0,0.0959949]
[1740966901993,0.160965,93188.0,93185.0,0.0959949]
[1740966902345,0.160968,93186.0,93185.0,0.0959949]
[1740966902701,0.16926367,93193.0,93185.0,0.0959949]
[1740966902912,0.16926367,93193.0,93185.0,0.11753713]
[1740966903345,0.16926367,93193.0,93186.0,1.714624]
[1740966903559,0.16926367,93193.0,93186.0,1.5]
[1740966903721,0.0803,93193.0,93192.0,0.160958]
[1740966903921,0.16573643,93205.0,93185.0,0.13153713]
[1740966903922,0.0811,93201.0,93191.0,0.214612]
[1740966904122,0.0811,93201.0,93186.0,0.00150221]
[1740966904123,0.00480043,93205.0,93204.0,0.160937]
[1740966904329,0.00480043,93205.0,93204.0,1.660937]
[1740966904784,0.00480043,93205.0,93204.0,1.960937]
[1740966905366,1e-08,93205.0,93204.0,2.11537402]
[1740966905533,0.0004,93219.0,93218.0,0.460913]
[1740966905736,0.0004,93219.0,93218.0,0.81199702]
[1740966905975,0.0004,93219.0,93218.0,1.13909702]
[1740966906288,0.0789703,93253.0,93230.0,0.460892]
[1740966907397,0.0001703,93253.0,93230.0,1.49985453]
[1740966907557,0.0001703,93253.0,93230.0,1.78650553]
[1740966907764,0.0001703,93253.0,93230.0,1.66266953]
[1740966907985,0.0001703,93253.0,93230.0,1.64776953]
[1740966908183,0.0001703,93253.0,93230.0,1.65476953]
[1740966908612,0.1610223,93253.0,93230.0,0.5961124]
[1740966908821,0.0765,93249.0,93230.0,0.5961124]
[1740966909028,0.0765,93249.0,93230.0,0.80621051]
[1740966909217,0.0765,93249.0,93230.0,0.8350179]
[1740966909619,0.214495,93242.0,93230.0,0.8350179]
[1740966909933,0.0765,93249.0,93230.0,0.8350179]
[1740966910350,0.0787,93252.0,93230.0,0.8350179]
[1740966911135,0.0787,93252.0,93230.0,0.94385492]
[1740966912581,0.0787,93252.0,93230.0,0.8350179]
[1740966912947,0.160856,93251.0,93230.0,0.8350179]
[1740966913283,0.239555,93252.0,93230.0,0.8350179]
[1740966913469,0.239555,93252.0,93230.0,2.3350179]
[1740966913470,0.0787,93252.0,93230.0,2.3350179]
[1740966913631,0.0787,93252.0,93230.0,0.3741259]
[1740966913825,0.0001703,93253.0,93230.0,0.3411]
[1740966913826,0.33345602,93231.0,93230.0,0.3411]
[1740966914031,0.17256602,93231.0,93230.0,0.3411]
[1740966914361,0.0857604,93231.0,93230.0,0.501992]
[1740966914565,0.0051604,93231.0,93230.0,0.494992]
[1740966914793,0.0051604,93231.0,93230.0,0.487992]
[1740966914993,0.0051604,93231.0,93230.0,0.501992]
[1740966915404,0.0051604,93231.0,93230.0,0.508992]
[1740966915703,0.0051604,93231.0,93230.0,0.501992]
[1740966915863,0.0051604,93231.0,93230.0,0.808992]
[1740966916270,0.0051604,93231.0,93230.0,0.787992]
[1740966916589,0.0051604,93231.0,93230.0,0.801992]
[1740966916994,0.0051604,93231.0,93230.0,0.91082902]
[1740966917511,0.0051604,93231.0,93230.0,0.801992]
[1740966917817,0.0051604,93231.0,93230.0,0.794992]
[1740966918614,0.0051604,93231.0,93230.0,0.801992]
[1740966918820,0.0051604,93231.0,93230.0,0.794992]
[1740966919000,0.0051604,93231.0,93230.0,0.801992]
[1740966920634,0.0051604,93231.0,93230.0,0.91082902]
[1740966921251,0.0051604,93231.0,93230.0,0.90382902]
[1740966921409,0.0051604,93231.0,93230.0,0.794992]
[1740966922170,0.0051604,93231.0,93230.0,0.801992]
[1740966922369,0.0051604,93231.0,93230.0,0.794992]
[1740966922518,0.0051604,93231.0,93230.0,0.787992]
[1740966922737,0.0051604,93231.0,93230.0,0.801992]
[1740966923340,0.0051604,93231.0,93230.0,2.301992]
[1740966924176,0.0051604,93231.0,93230.0,2.301812]
[1740966925975,0.0051604,93231.0,93230.0,2.41064902]
[1740966926162,0.0051604,93231.0,93230.0,3.29795402]
[1740966926430,0.0051604,93231.0,93230.0,3.34425402]
[1740966926647,4e-07,93231.0,93230.0,3.34425402]
[1740966926780,4e-07,93231.0,93230.0,2.65694902]
[1740966927199,3e-07,93247.0,93246.0,0.460864]
[1740966927422,0.8969543,93250.0,93249.0,0.460859]
[1740966927614,0.71827267,93250.0,93249.0,3.31811502]
[1740966927964,0.71827267,93250.0,93249.0,3.23594202]
[1740966927965,0.71867523,93250.0,93249.0,3.23594202]
[1740966928167,0.71867523,93250.0,93249.0,2.46547202]
[1740966928374,0.71867523,93250.0,93249.0,0.60193002]
[1740966928567,0.71867523,93250.0,93249.0,0.51502563]
[1740966928770,0.71867523,93250.0,93249.0,0.48279163]
[1740966929132,0.71867523,93250.0,93249.0,0.48979163]
[1740966929733,0.71867523,93250.0,93249.0,0.49679163]
[1740966930630,0.71867523,93250.0,93249.0,0.014]
[1740966930832,0.71867523,93250.0,93249.0,0.174859]
[1740966931613,0.71867523,93250.0,93249.0,0.167859]
[1740966931813,0.71867523,93250.0,93249.0,0.160859]
[1740966932182,0.71867523,93250.0,93249.0,0.27669602]
[1740966932735,0.71867523,93250.0,93249.0,0.28369602]
[1740966932891,0.71867523,93250.0,93249.0,0.26969602]
[1740966933240,0.71867523,93250.0,93249.0,0.27669602]
[1740966933443,0.71867523,93250.0,93249.0,2.08369602]
[1740966933641,0.71867523,93250.0,93249.0,2.07669602]
[1740966933891,0.71867523,93250.0,93249.0,2.08369602]
[1740966934812,0.71867523,93250.0,93249.0,2.07669602]
[1740966934982,0.71867523,93250.0,93249.0,2.08369602]
[1740966935184,0.71867523,93250.0,93249.0,2.07669602]
[1740966936056,0.71867523,93250.0,93249.0,2.08369602]
[1740966936443,0.71867523,93250.0,93249.0,2.06969602]
[1740966936642,0.71867523,93250.0,93249.0,2.40361602]
[1740966936943,0.71867523,93250.0,93249.0,2.294779]
[1740966937770,0.71867523,93250.0,93249.0,2.301779]
[1740966938129,0.71867523,93250.0,93249.0,2.41095662]
[1740966938252,0.71867523,93250.0,93249.0,2.39695662]
[1740966938457,0.71884553,93250.0,93249.0,2.39695662]
[1740966938667,0.71884553,93250.0,93249.0,2.41095662]
[1740966938870,0.71884553,93250.0,93249.0,2.40395662]
[1740966939069,0.71884553,93250.0,93249.0,2.72047662]
[1740966939293,0.71884553,93250.0,93249.0,2.67728662]
[1740966939467,0.71884553,93250.0,93249.0,2.69128662]
[1740966939669,0.71884553,93250.0,93249.0,2.76988662]
[1740966941221,0.71884553,93250.0,93249.0,2.48955662]
[1740966941577,0.71884553,93250.0,93249.0,3.59478562]
[1740966941928,0.71884553,93250.0,93249.0,3.55353254]
[1740966942134,0.71884553,93250.0,93249.0,3.49021254]
[1740966943147,0.71884553,93250.0,93249.0,3.45810962]
[1740966943899,0.0142275,93271.0,93249.0,3.45810962]
[1740966943900,3e-07,93259.0,93258.0,0.45]
[1740966944171,0.00499,93284.0,93283.0,0.460801]
[1740966944331,0.00499,93284.0,93283.0,0.97515802]
[1740966944528,0.00511071,93284.0,93283.0,2.47515802]
[1740966945315,0.00511071,93284.0,93283.0,2.81285496]
[1740966945618,0.00511071,93284.0,93283.0,3.01285496]
[1740966945803,0.00511071,93284.0,93283.0,3.06985496]
[1740966946557,0.00511071,93284.0,93283.0,3.07685496]
[1740966946896,0.00511071,93284.0,93283.0,2.74825496]
[1740966947121,0.00511071,93284.0,93283.0,2.64373458]
[1740966947698,0.00511071,93284.0,93283.0,2.65073458]
[1740966948242,0.00511071,93284.0,93283.0,2.52218058]
[1740966948682,0.00511071,93284.0,93283.0,4.77236858]
[1740966948683,7.1e-07,93284.0,93283.0,4.77236858]
[1740966948879,7.539e-05,93324.0,93309.0,0.460756]
[1740966949081,7.539e-05,93324.0,93323.0,0.48229752]
[1740966949464,0.00019601,93324.0,93323.0,0.48229752]
[1740966949600,0.00019601,93324.0,93323.0,1.99015334]
[1740966950218,0.00019601,93324.0,93323.0,2.09899036]
[1740966950440,0.00019601,93324.0,93323.0,3.00228036]
[1740966951208,0.00019601,93324.0,93323.0,3.20228036]
[1740966951385,1e-08,93324.0,93323.0,3.50098036]
[1740966951592,1e-08,93324.0,93323.0,2.60469036]
[1740966951827,1e-08,93324.0,93323.0,2.61169036]
[1740966952234,1e-08,93324.0,93323.0,2.69021036]
[1740966952407,1e-08,93324.0,93323.0,2.60469036]
[1740966952619,1e-08,93324.0,93323.0,2.69021036]
[1740966953308,1e-08,93324.0,93323.0,2.68321036]
[1740966953502,1e-08,93324.0,93323.0,2.40469036]
[1740966953729,1e-08,93324.0,93323.0,2.58451036]
[1740966953935,1e-08,93324.0,93323.0,2.59151036]
[1740966954132,0.0004,93339.0,93337.0,0.2]
[1740966954311,0.0004,93339.0,93338.0,0.56954302]
[1740966954707,0.0004,93339.0,93338.0,2.14806302]
[1740966955408,0.0004,93339.0,93338.0,2.15506302]
[1740966955607,0.0004,93339.0,93338.0,2.16611955]
[1740966955809,0.0004,93339.0,93338.0,2.05728253]
[1740966956132,0.0004,93339.0,93338.0,2.06428253]
[1740966956334,0.0004,93339.0,93338.0,2.08556395]
[1740966956716,0.0004,93339.0,93338.0,2.07856395]
[1740966956916,0.0004,93339.0,93338.0,2.08556395]
[1740966957618,0.0004,93339.0,93338.0,2.07856395]
[1740966957837,0.0004,93339.0,93338.0,2.00004395]
[1740966958039,0.0004,93339.0,93338.0,2.08556395]
[1740966958639,0.0004,93339.0,93338.0,2.06428253]
[1740966958846,0.0004,93339.0,93338.0,1.82505653]
[1740966959025,0.0777,93339.0,93338.0,1.98576253]
[1740966959251,0.0777,93339.0,93338.0,1.97876253]
[1740966959630,0.0777,93339.0,93338.0,1.98576253]
[1740966959883,0.0777,93339.0,93338.0,1.97876253]
[1740966960087,0.0777,93339.0,93338.0,1.98576253]
[1740966960425,0.0777,93339.0,93338.0,1.97876253]
[1740966960775,0.0777,93339.0,93338.0,1.97176253]
[1740966960977,0.0777,93339.0,93338.0,1.97876253]
[1740966961177,0.0777,93339.0,93338.0,1.82505653]
[1740966961178,0.1242,93339.0,93338.0,1.82505653]
[1740966961402,0.1242,93339.0,93338.0,1.97176253]
[1740966961577,0.1242,93339.0,93338.0,1.97876253]
[1740966961779,0.1242,93339.0,93338.0,1.98576253]
[1740966961924,0.1243703,93339.0,93338.0,1.97876253]
[1740966962364,0.1243703,93339.0,93338.0,1.98576253]
[1740966962574,0.1243703,93339.0,93338.0,1.97876253]
[1740966962962,0.1243703,93339.0,93338.0,1.97176253]
[1740966963161,0.1243703,93339.0,93338.0,1.97876253]
[1740966963767,0.1243703,93339.0,93338.0,1.97176253]
[1740966963969,0.1243703,93339.0,93338.0,1.94904863]
[1740966964168,0.1243703,93339.0,93338.0,1.95604863]
[1740966964522,0.1243703,93339.0,93338.0,1.94204863]
[1740966964877,0.1243703,93339.0,93338.0,1.94904863]
[1740966965681,0.1243703,93339.0,93338.0,1.95604863]
[1740966965850,0.1243703,93339.0,93338.0,1.514]
[1740966966058,0.1243703,93339.0,93338.0,1.5]
[1740966966587,0.1243703,93339.0,93338.0,1.507]
[1740966966957,0.1243703,93339.0,93338.0,1.5]
[1740966967165,0.1243703,93339.0,93338.0,1.507]
[1740966967376,0.1243703,93339.0,93338.0,1.514]
[1740966967577,0.1243703,93339.0,93338.0,1.507]
[1740966967817,0.20497045,93339.0,93338.0,1.5]
[1740966967992,0.0787,93338.0,93313.0,0.02958169]
[1740966968193,0.0787,93328.0,93313.0,0.00785569]
[1740966968396,0.0787,93326.0,93319.0,1.5]
[1740966968595,0.160737,93320.0,93319.0,1.5]
[1740966968815,0.32112781,93320.0,93319.0,1.5]
[1740966969005,0.16039081,93320.0,93319.0,1.5]
[1740966969603,0.16039081,93320.0,93318.0,0.007]
[1740966969804,0.08171953,93319.0,93318.0,0.007]
[1740966970473,0.24245753,93319.0,93318.0,0.007]
[1740966970694,0.214321,93318.0,93303.0,0.09530035]
[1740966970858,0.263396,93329.0,93303.0,0.09530035]
[1740966970859,0.082,93315.0,93303.0,0.09542097]
[1740966971033,0.242764,93304.0,93303.0,0.09542097]
[1740966971206,0.32537361,93304.0,93303.0,0.00012062]
[1740966971889,0.16460961,93304.0,93303.0,0.00012062]
[1740966972270,0.16460961,93304.0,93303.0,0.00712062]
[1740966973073,0.16460961,93304.0,93303.0,0.16788662]
[1740966973074,0.082,93304.0,93303.0,0.16788662]
[1740966973274,0.0817,93316.0,93303.0,1.51412062]
[1740966973451,0.08226502,93315.0,93314.0,0.160747]
[1740966973976,0.08226502,93315.0,93314.0,1.660747]
[1740966974200,0.0817,93316.0,93314.0,1.5]
[1740966974395,0.0817,93316.0,93315.0,0.160745]
[1740966974596,0.0817,93316.0,93314.0,1.5]
[1740966974903,0.0817,93316.0,93315.0,0.160745]
[1740966976370,0.0817,93316.0,93314.0,1.667747]
[1740966976569,0.24269419,93315.0,93314.0,1.507]
[1740966976770,0.24269419,93315.0,93314.0,1.5]
[1740966977165,0.08194919,93315.0,93314.0,1.5]
[1740966977389,0.08194919,93315.0,93314.0,1.507]
[1740966977564,0.08194919,93315.0,93314.0,1.514]
[1740966977769,0.08194919,93315.0,93314.0,1.507]
[1740966978000,0.08194919,93315.0,93314.0,0.007]
[1740966978001,0.32599419,93315.0,93314.0,0.007]
[1740966978212,0.32599419,93315.0,93314.0,0.014]
[1740966980036,0.160764,93304.0,93303.0,0.00046102]
[1740966980246,0.32167361,93304.0,93303.0,0.00046102]
[1740966980425,0.36947361,93304.0,93303.0,0.00046102]
[1740966981530,0.36947361,93304.0,93303.0,0.00746102]
[1740966982379,0.38069063,93304.0,93303.0,0.00746102]
[1740966982765,0.36947361,93304.0,93303.0,0.00746102]
[1740966983013,0.36947361,93304.0,93303.0,0.00046102]
[1740966983382,0.36947361,93304.0,93303.0,0.00746102]
[1740966983574,0.36947361,93304.0,93303.0,0.00046102]
[1740966983762,0.38076499,93304.0,93303.0,0.01446102]
[1740966984605,0.38076499,93304.0,93303.0,0.00746102]
[1740966984805,0.38076499,93304.0,93303.0,0.01446102]
[1740966985245,0.36947361,93304.0,93303.0,0.01446102]
[1740966985423,0.38054776,93304.0,93303.0,0.01446102]
[1740966985827,0.70464776,93304.0,93303.0,0.01446102]
[1740966986230,1.05464776,93304.0,93303.0,0.01446102]
[1740966986856,1.05464776,93304.0,93278.0,0.0003406]
[1740966986857,0.288707,93279.0,93278.0,0.0003406]
[1740966987102,0.21194586,93279.0,93276.0,1.49648689]
[1740966987281,0.08410332,93278.0,93276.0,1.49648689]
[1740966988212,0.08410332,93278.0,93276.0,1.65729889]
[1740966988412,0.160811,93277.0,93276.0,1.49648689]
[1740966988571,0.24497179,93277.0,93276.0,1.49648689]
[1740966988771,0.24497179,93277.0,93276.0,1.50348689]
[1740966989554,0.08416079,93277.0,93276.0,1.50348689]
[1740966989776,0.08416079,93277.0,93276.0,1.51048689]
[1740966989974,0.08416079,93277.0,93276.0,1.50348689]
[1740966990211,0.08416079,93277.0,93276.0,1.49648689]
[1740966990413,0.08416079,93277.0,93276.0,1.51048689]
[1740966990414,0.08516079,93277.0,93276.0,1.51048689]
[1740966990589,0.08516079,93277.0,93276.0,1.50348689]
[1740966990793,0.08416079,93277.0,93276.0,1.49648689]
[1740966991200,0.08516079,93277.0,93276.0,1.50348689]
[1740966991595,0.08516079,93277.0,93276.0,1.51048689]
[1740966992197,0.24597179,93277.0,93276.0,1.51048689]
[1740966992399,0.08516079,93277.0,93276.0,1.51048689]
[1740966993135,0.24597179,93277.0,93276.0,1.51048689]
[1740966994325,0.08516079,93277.0,93276.0,1.51048689]
[1740966994909,0.24597179,93277.0,93276.0,1.51048689]
[1740966995459,0.08516079,93277.0,93276.0,1.51048689]
[1740966995628,0.24597179,93277.0,93276.0,1.51048689]
[1740966996009,0.001,93277.0,93276.0,1.67129989]
[1740966996429,0.001,93277.0,93276.0,1.51048689]
[1740966996610,0.24597179,93277.0,93276.0,1.51048689]
[1740966999140,0.32257179,93277.0,93276.0,1.51048689]
[1740966999394,0.37017179,93277.0,93276.0,1.51048689]
[1740966999573,0.69427179,93277.0,93276.0,0.0143406]
[1740966999871,0.69444209,93277.0,93276.0,0.0143406]
[1740967000364,0.84816209,93277.0,93276.0,0.0003406]
[1740967000567,0.84916209,93277.0,93276.0,0.0073406]
[1740967000767,0.84916209,93277.0,93276.0,0.0143406]
[1740967000928,0.84916209,93277.0,93276.0,0.0003406]
[1740967001131,0.84816209,93277.0,93276.0,0.0003406]
[1740967001355,0.84816209,93277.0,93276.0,0.0073406]
[1740967002475,0.84916209,93277.0,93276.0,0.0143406]
[1740967002686,1.19916209,93277.0,93276.0,0.0073406]
[1740967002915,1.19916209,93277.0,93276.0,0.0003406]
[1740967003121,1.19816209,93277.0,93276.0,0.0073406]
[1740967003255,1.14816209,93277.0,93276.0,0.0003406]
[1740967003687,1.14916209,93277.0,93276.0,0.0143406]
[1740967004103,1.14816209,93277.0,93276.0,0.0073406]
[1740967004441,1.14916209,93277.0,93276.0,0.0073406]
[1740967004585,1.14916209,93277.0,93276.0,0.0143406]
[1740967005778,1.14816209,93277.0,93276.0,0.0073406]
[1740967005982,1.14916209,93277.0,93276.0,0.0143406]
[1740967006438,1.14916209,93277.0,93276.0,0.0073406]
[1740967006836,1.14816209,93277.0,93276.0,0.0073406]
[1740967007037,1.19916209,93277.0,93276.0,0.0143406]
[1740967007544,1.19816209,93277.0,93276.0,0.0073406]
[1740967008531,1.19816209,93277.0,93276.0,6e-07]
[1740967008532,1.63097853,93277.0,93276.0,6e-07]
[1740967008733,1.63097853,93277.0,93249.0,0.0003406]
[1740967008734,0.243857,93250.0,93249.0,0.0003406]
[1740967008936,0.65366988,93250.0,93249.0,0.00046131]
[1740967009990,0.65366988,93250.0,93249.0,0.00746131]
[1740967010186,0.65366988,93250.0,93249.0,0.00046131]
[1740967010398,0.65366988,93250.0,93249.0,0.01446131]
[1740967010601,0.65466988,93250.0,93249.0,0.01446131]
[1740967011279,0.65466988,93250.0,93249.0,0.00746131]
[1740967011594,0.65466988,93250.0,93249.0,0.01446131]
[1740967012031,0.65466988,93250.0,93249.0,0.00746131]
[1740967012032,0.65366988,93250.0,93249.0,0.00746131]
[1740967012232,0.65466988,93250.0,93249.0,0.01146131]
[1740967012847,0.65366988,93250.0,93249.0,0.00746131]
[1740967013049,0.65366988,93250.0,93249.0,0.00446131]
[1740967013247,0.65466988,93250.0,93249.0,0.00446131]
[1740967013436,0.65566988,93250.0,93249.0,0.01046131]
[1740967013641,0.65366988,93250.0,93249.0,0.00046131]
[1740967013832,0.65466988,93250.0,93249.0,0.00646131]
[1740967014037,0.65566988,93250.0,93249.0,0.01046131]
[1740967014234,0.65466988,93250.0,93249.0,0.00446131]
[1740967014483,0.65566988,93250.0,93249.0,0.01046131]
[1740967014825,0.65566988,93250.0,93249.0,0.00446131]
[1740967015714,0.65566988,93250.0,93249.0,0.00046131]
[1740967015920,0.65466988,93250.0,93249.0,0.00046131]
[1740967016170,0.65666988,93250.0,93249.0,0.00546131]
[1740967016340,0.65466988,93250.0,93249.0,0.00546131]
[1740967016735,0.65466988,93250.0,93249.0,0.00046131]
[1740967017015,0.65466988,93250.0,93249.0,0.00546131]
[1740967017574,0.65466988,93250.0,93249.0,0.00046131]
[1740967017883,0.65466988,93250.0,93249.0,0.00546131]
[1740967018087,0.65566988,93250.0,93249.0,0.00546131]
[1740967019031,0.65466988,93250.0,93249.0,0.00046131]
[1740967019231,0.65366988,93250.0,93249.0,0.00046131]
[1740967019457,0.65466988,93250.0,93249.0,0.00546131]
[1740967019631,0.65566988,93250.0,93249.0,0.01146131]
[1740967019852,0.65466988,93250.0,93249.0,0.00546131]
[1740967020252,0.65566988,93250.0,93249.0,0.01146131]
[1740967020456,0.65566988,93250.0,93249.0,0.00046131]
[1740967020457,1.05336988,93250.0,93249.0,0.00046131]
[1740967020775,1.05336988,93250.0,93249.0,0.00546131]
[1740967020776,1.05436988,93250.0,93249.0,0.00546131]
[1740967020976,1.21012988,93250.0,93249.0,0.01146131]
[1740967021186,1.21012988,93250.0,93249.0,0.00546131]
[1740967022175,1.20912988,93250.0,93249.0,0.00046131]
[1740967022473,1.21012988,93250.0,93249.0,0.00546131]
[1740967022691,1.20812988,93250.0,93249.0,0.00046131]
[1740967022873,1.53302988,93250.0,93249.0,0.00546131]
[1740967023211,1.53402988,93250.0,93249.0,0.01046131]
[1740967023412,1.53202988,93250.0,93249.0,0.00046131]
[1740967023707,1.53302988,93250.0,93249.0,0.00546131]
[1740967023873,1.53402988,93250.0,93249.0,0.01046131]
[1740967024067,1.53302988,93250.0,93249.0,0.00546131]
[1740967024272,1.53302988,93250.0,93249.0,0.00946131]
[1740967024273,1.53402988,93250.0,93249.0,0.00946131]
[1740967024475,1.58402988,93250.0,93249.0,0.00946131]
[1740967025320,1.58302988,93250.0,93249.0,0.00446131]
[1740967025520,1.58302988,93250.0,93249.0,0.00546131]
[1740967026493,1.58402988,93250.0,93249.0,3.1e-07]
[1740967026689,1.58302988,93250.0,93249.0,3.1e-07]
[1740967026891,1.58402988,93250.0,93249.0,0.00400031]
[1740967027094,1.58302988,93250.0,93249.0,3.1e-07]
[1740967027341,1.58302988,93250.0,93222.0,0.005]
[1740967027342,0.589804,93223.0,93222.0,0.005]
[1740967027573,1.07960986,93223.0,93222.0,0.005]
[1740967028734,1.0905091,93223.0,93222.0,0.005]
[1740967029299,1.0925091,93223.0,93222.0,0.006]
[1740967029474,0.65270986,93223.0,93222.0,0.006]
[1740967030076,0.65170986,93223.0,93222.0,0.006]
[1740967030282,0.41136586,93223.0,93222.0,0.005]
[1740967030637,0.41136586,93223.0,93222.0,0.165906]
[1740967030638,0.3251,93223.0,93222.0,0.165906]
[1740967030949,0.486004,93223.0,93222.0,1.505]
[1740967031151,0.57326986,93223.0,93222.0,1.505]
[1740967031729,0.08826586,93223.0,93222.0,1.512]
[1740967031926,0.08826586,93223.0,93222.0,1.672906]
[1740967032125,0.08926586,93223.0,93222.0,1.668906]
[1740967032336,0.08826586,93223.0,93222.0,1.668906]
[1740967032526,0.08926586,93223.0,93222.0,1.675906]
[1740967032703,0.08926586,93223.0,93222.0,1.515]
[1740967032931,0.002,93223.0,93222.0,1.675906]
[1740967033930,0.002,93223.0,93222.0,1.755106]
[1740967034138,0.002,93223.0,93222.0,1.803706]
[1740967035076,0.001,93223.0,93222.0,1.796706]
[1740967035300,0.1548,93235.0,93222.0,0.1398]
[1740967035545,0.001,93223.0,93222.0,0.30220762]
[1740967035746,0.002,93223.0,93222.0,0.307706]
[1740967035861,0.001,93223.0,93222.0,1.00135902]
[1740967036063,0.001,93223.0,93222.0,1.00869962]
[1740967036363,0.1548,93235.0,93234.0,0.288685]
[1740967037623,0.1548,93235.0,93225.0,0.0492]
[1740967037783,0.1548,93235.0,93232.0,0.160887]
[1740967037986,0.1548,93235.0,93233.0,0.160886]
[1740967038181,0.1548,93235.0,93234.0,0.160885]
[1740967038383,0.1548,93235.0,93234.0,1.660885]
[1740967038906,0.1558,93235.0,93234.0,1.967885]
[1740967039104,0.1558,93235.0,93234.0,2.048185]
[1740967039331,0.1558,93235.0,93234.0,2.432415]
[1740967039789,0.1558,93235.0,93234.0,2.44735124]
[1740967040334,0.1558,93235.0,93234.0,2.54486426]
[1740967041157,0.001,93235.0,93234.0,2.53786426]
[1740967041472,0.001,93235.0,93234.0,2.4363169]
[1740967041675,0.0001204,93250.0,93249.0,0.160859]
[1740967042399,0.0001204,93250.0,93249.0,0.1623602]
[1740967042976,0.0001204,93250.0,93249.0,0.591959]
[1740967043195,0.0001204,93250.0,93249.0,0.598959]
[1740967043451,0.0001204,93250.0,93249.0,0.61687153]
[1740967043705,0.0001204,93250.0,93249.0,0.52847153]
[1740967044021,0.0001204,93250.0,93249.0,0.31791253]
[1740967044217,0.0001204,93250.0,93249.0,0.47877153]
[1740967044426,0.0001204,93250.0,93249.0,0.47177153]
[1740967044849,0.0001204,93250.0,93249.0,0.32491253]
[1740967045247,0.0001204,93250.0,93249.0,0.02491253]
[1740967045869,0.0001204,93250.0,93249.0,0.18577153]
[1740967047862,0.0001204,93250.0,93249.0,0.01791253]
[1740967048041,0.1619774,93250.0,93249.0,0.01791253]
[1740967048198,0.1621478,93250.0,93249.0,1.514]
[1740967048401,0.1611478,93250.0,93249.0,0.007]
[1740967048602,0.0002908,93250.0,93238.0,0.02145059]
[1740967048802,0.1621478,93250.0,93249.0,0.007]
[1740967049001,0.1621478,93250.0,93249.0,0.014]
[1740967049223,0.24686068,93250.0,93249.0,0.007]
[1740967049433,0.24686068,93250.0,93239.0,1.5]
[1740967049434,0.160875,93240.0,93239.0,1.5]
[1740967049628,0.0860004,93249.0,93239.0,1.5]
[1740967050071,0.0860004,93249.0,93240.0,0.160873]
[1740967050224,0.0860004,93249.0,93239.0,1.5]
[1740967050434,0.0860004,93249.0,93240.0,0.160875]
[1740967050769,0.0860004,93249.0,93239.0,1.5]
[1740967050891,0.0860004,93249.0,93221.0,0.0003404]
[1740967050892,0.241197,93227.0,93221.0,0.0003404]
[1740967051096,0.32823273,93227.0,93221.0,0.0003404]
[1740967051552,0.37333273,93227.0,93221.0,0.0003404]
[1740967052575,0.17534071,93227.0,93221.0,0.0003404]
[1740967052715,0.17634071,93227.0,93226.0,0.007]
[1740967053074,0.09604071,93227.0,93226.0,0.014]
[1740967053264,0.00900498,93227.0,93226.0,0.167899]
[1740967053640,0.001,93227.0,93226.0,0.014]
[1740967053843,0.001,93227.0,93226.0,0.174899]
[1740967054049,0.001,93227.0,93226.0,0.167899]
[1740967054248,0.0802,93242.0,93221.0,0.2148834]
[1740967054474,0.08680562,93238.0,93235.0,0.160883]
[1740967054644,0.08680562,93238.0,93226.0,0.007]
[1740967054844,0.08680562,93238.0,93235.0,0.160883]
[1740967055285,0.08680562,93238.0,93223.0,0.00150162]
[1740967055490,0.08680562,93238.0,93226.0,0.014]
[1740967055818,0.08680562,93238.0,93236.0,0.16088]
[1740967056000,0.08680562,93238.0,93235.0,0.007]
[1740967056293,0.08680562,93238.0,93236.0,0.160881]
[1740967056450,0.08680562,93238.0,93236.0,0.160882]
[1740967056651,0.08680562,93238.0,93236.0,0.17216895]
[1740967057477,0.3241,93246.0,93236.0,0.01128695]